[Event "7th Sharjah Masters 2024"]
[Site "Sharjah"]
[Date "2024.05.21"]
[Round "8.2"]
[White "Sarana, Alexey"]
[Black "Erigaisi Arjun"]
[Result "1/2-1/2"]
[ECO "D82"]
[WhiteElo "2706"]
[BlackElo "2762"]
[Annotator "TA"]
[PlyCount "32"]
[EventDate "2024.05.13"]
[EventType "swiss"]
[EventCountry "UAE"]
[SourceTitle "playchess.com"]
[Source "ChessBase"]
[SourceQuality "1"]
[TimeControl "5400+30"]

{[%evp 18,32,22,22,12,11,11,0,0,8,8,0,0,2,2,0,3]} 1. d4 {[%emt 0:00:04]} Nf6 {[%emt 0:07:30]} 2. c4 {[%emt 0:00:04]} g6 {[%emt 0:00:04]} 3. Nc3 {[%emt 0:00:13]} d5 {[%emt 0:00:07]} 4. Bf4 {[%emt 0:02:03]} Bg7 {[%emt 0:00:35]} 5. e3 {[%emt 0:00:05]} c5 {[%emt 0:00:28]} 6. dxc5 {[%emt 0:00:32]} Qa5 {[%emt 0:00:07]} 7. Rc1 {[%emt 0:00:31]} dxc4 {[%emt 0:00:09]} 8. Bxc4 {[%emt 0:00:14]} O-O {[%emt 0:00:07]} 9. Nge2 {[%emt 0:01:01]} Qxc5 {[%emt 0:01:09]} 10. Qb3 {[%emt 0:00:42] Threatens to win with Nb5. The position is equal.} Qa5 {[%emt 0:00:08]} 11. O-O {[%emt 0:00:44]} Nbd7 {[%emt 0:00:05][%cal Bb8d7,Bd7c5,Bc5e6][%mdl 32]} 12. Rfd1 {[%emt 0:08:58]} Nc5 {[%emt 0:02:04]} 13. Qb5 {[%emt 0:00:20]} Qxb5 {[%emt 0:00:08]} 14. Nxb5 {[%emt 0:00:05] [#] Strongly threatening Nc7.} Be6 {[%emt 0:00:19]} 15. Bxe6 {[%emt 0:08:38]} Nxe6 {[%emt 0:01:39]} 16. Be5 {[%emt 0:00:52]} a6 {[%emt 0:02:35] Not much happened in this game.   Weighted Error Value: White=0.02 (flawless) /Black=0.00 (flawless) .  OK:         	White=4     	Black=4} 1/2-1/2

[Event "7th Sharjah Masters 2024"]
[Site "Sharjah"]
[Date "2024.05.21"]
[Round "8.3"]
[White "Tabatabaei, M. Amin"]
[Black "Suleymanli, Aydin"]
[Result "1/2-1/2"]
[ECO "E06"]
[WhiteElo "2707"]
[BlackElo "2621"]
[Annotator "TA"]
[PlyCount "74"]
[EventDate "2024.05.13"]
[EventType "swiss"]
[EventCountry "UAE"]
[SourceTitle "playchess.com"]
[Source "ChessBase"]
[SourceQuality "1"]
[TimeControl "5400+30"]

{[%evp 9,74,17,12,-14,18,22,24,13,25,34,39,12,0,16,29,0,0,-4,-3,-5,-3,0,0,-1,0,0,0,0,0,0,0,0,0,2,4,2,6,0,0,-12,-20,-15,-16,-46,-27,-33,-22,-35,0,-30,-31,-23,0,-33,0,-27,0,-23,-26,-51,-47,-60,0,-55,0,-61,0]} 1. d4 {[%emt 1:31:00]} Nf6 {[%emt 1:31:00]} 2. Nf3 {[%emt 0:00:30]} d5 {[%emt 0:00:30]} 3. c4 {[%emt 0:00:30]} e6 {[%emt 0:00:30]} 4. g3 {[%emt 0:00:30]} Be7 {[%emt 0:00:30]} 5. Bg2 {[%emt 0:00:30]} O-O {[%emt 0:00:30]} 6. Qd3 {[%emt 0:00:30]} h6 {[%emt 0:00:30]} 7. O-O {[%emt 0:00:30][%cal Bh1f1,Bf1d1,Bd1d5][%mdl 32]} c5 {[%emt 0:00:30]} 8. cxd5 {[%emt 0:00:30] White has an edge.} exd5 {[%emt 0:00:30]} 9. dxc5 {[%emt 0:00:30]} Bxc5 {[%emt 0:00:30]} 10. Be3 {[%emt 0:00:30]} Bxe3 {[%emt 0:00:30]} 11. Qxe3 {[%emt 0:00:30]} Nc6 {[%emt 0:00:30]} 12. Rd1 {[%emt 0:00:30]} Re8 {[%emt 0:00:30]} 13. Qb3 {[%emt 0:00:30]} Rxe2 {[%emt 0:00:30]} 14. Nc3 {[%emt 0:00:30][%csl LRd5,LRe2]} Re7 {[%emt 0:00:30]} 15. Nxd5 {[%emt 0:00:30]} Nxd5 {[%emt 0:00:30]} 16. Rxd5 {[%emt 0:00:30]} Qe8 {[%emt 0:00:30] [#] ...Be6 would now be deadly.} 17. Rd6 {[%emt 0:00:30]} Be6 {[%emt 0:00:30]} 18. Qd3 {[%emt 0:00:30]} Rd7 {[%emt 0:00:30]} 19. Rxd7 {[%emt 0:00:30]} Qxd7 {[%emt 0:00:30]} 20. Qxd7 {[%emt 0:00:30]} Bxd7 {[%emt 0:00:30]} 21. a3 {[%emt 0:00:30]} Rd8 {[%emt 0:00:30]} 22. Rd1 {[%emt 0:00:30]} Kf8 {[%emt 0:00:30]} 23. b4 {[%emt 0:00:30]} Ke7 {[%emt 0:00:30]} 24. Re1+ {[%emt 0:00:30]} Be6 {[%emt 0:00:30]} 25. b5 {[%emt 0:00:30]} Na5 {[%emt 0:00:30]} 26. Ne5 {[%emt 0:00:30][%cal Og2h3] Prevents Rd3} Kf6 {[%emt 0:00:30]} 27. f4 {[%emt 0:00:30]} Rd2 {[%emt 0:00:30]} 28. Rc1 {[%emt 0:00:30]} Ra2 {[%emt 0:00:30]} 29. Rc3 {[%emt 0:00:30]} Ra1+ {[%emt 0:00:30]} 30. Kf2 {[%emt 0:00:30]} Ra2+ {[%emt 0:00:30]} 31. Kg1 {[%emt 0:00:30]} Ra1+ {[%emt 0:00:30]} (31... g5 $5) 32. Kf2 {[%emt 0:00:30]} Ra2+ {[%emt 0:00:30]} (32... g5 $5) 33. Kg1 {[%emt 0:00:30]} g5 {[%emt 0:00:30]} 34. Nd3 {[%emt 0:00:30]} Ra1+ {[%emt 0:00:30]} 35. Kf2 {[%emt 0:00:30]} Ra2+ {[%emt 0:00:30]} 36. Kg1 {[%emt 0:00:30]} Ra1+ {[%emt 0:00:30]} 37. Kf2 {[%emt 0:00:30]} Ra2+ {[%emt 0:00:30] Weighted Error Value: White=0.07 (flawless) /Black=0.12 (very precise) .  Mistake:       	---       	Black=1      Inaccurate:     	White=4     	Black=2      OK:         	White=8     	Black=10     Best:        	White=8     	---} (37... Nc4 $15 38. fxg5+ hxg5) 1/2-1/2

[Event "7th Sharjah Masters 2024"]
[Site "Sharjah"]
[Date "2024.05.21"]
[Round "8.4"]
[White "Murzin, Volodar"]
[Black "Aravindh, Chithambaram VR."]
[Result "1-0"]
[ECO "B42"]
[WhiteElo "2634"]
[BlackElo "2671"]
[Annotator "TA"]
[PlyCount "101"]
[EventDate "2024.05.13"]
[EventType "swiss"]
[EventCountry "UAE"]
[SourceTitle "playchess.com"]
[Source "ChessBase"]
[SourceQuality "1"]
[TimeControl "5400+30"]

{[%evp 43,101,45,56,53,46,46,81,40,54,29,45,30,30,33,64,27,31,0,32,0,27,19,51,7,20,0,0,0,0,0,10,0,0,0,10,0,43,0,0,0,17,0,0,0,77,87,150,159,372,366,437,197,449,440,561,558,557,447,526,406]} 1. e4 {[%emt 0:00:03]} c5 {[%emt 0:00:07]} 2. Nf3 {[%emt 0:00:08]} e6 {[%emt 0:00:04]} 3. d4 {[%emt 0:01:25]} cxd4 {[%emt 0:00:05]} 4. Nxd4 {[%emt 0:00:03]} a6 {[%emt 0:00:05]} 5. Bd3 {[%emt 0:01:56]} Bc5 {[%emt 0:00:05]} 6. Nb3 {[%emt 0:00:05]} Be7 {[%emt 0:00:47]} 7. Be3 {[%emt 0:01:37] B42: Sicilian: Kan Variation: 5 Bd3.} Nf6 {[%emt 0:04:13]} 8. N1d2 {[%emt 0:01:05]} d6 {[%emt 0:00:36]} 9. a4 {[%emt 0:02:40]} Nc6 {[%emt 0:14:50]} 10. Nc4 $146 {[%emt 0:08:13]} ({Predecessor:} 10. a5 d5 11. Bb6 Qd7 12. Nc5 Qd6 13. O-O Nxa5 14. Bxa5 Qxc5 15. e5 Nd7 16. Nb3 {0-1 Paveliev,A (2391)-Simonian,H (2504) RUS-chT2 16th 2009 (5)}) 10... d5 {[%emt 0:00:07]} 11. Bb6 {[%emt 0:04:41]} Qd7 {[%emt 0:31:18]} 12. exd5 {[%emt 0:00:27]} exd5 {[%emt 0:00:08]} 13. Ne3 {[%emt 0:00:44]} Qd6 {[%emt 0:00:42]} 14. O-O {[%emt 0:04:48]} O-O {[%emt 0:03:30]} 15. Re1 {[%emt 0:12:26]} Be6 {[%emt 0:04:43]} 16. c3 {[%emt 0:25:58]} g6 {[%emt 0:02:50]} 17. Bc5 {[%emt 0:02:17]} Qc7 {[%emt 0:00:07]} 18. Bxe7 {[%emt 0:00:20]} Nxe7 {[%emt 0:00:07]} 19. Nd4 {[%emt 0:00:18]} Rae8 {[%emt 0:00:40]} 20. Be2 {[%emt 0:00:59]} Nc8 {[%emt 0:03:09]} 21. Bf3 {[%emt 0:01:44]} Nd6 {[%emt 0:00:05]} 22. Qb3 {[%emt 0:01:14]} Nde4 {[%emt 0:01:56]} 23. Rad1 {[%emt 0:04:26]} Nc5 {[%emt 0:03:17]} 24. Qa2 {[%emt 0:04:44]} Rd8 {[%emt 0:01:07]} 25. a5 {[%emt 0:01:15]} Rfe8 {[%emt 0:05:51]} 26. Qa3 {[%emt 0:04:14]} Ncd7 {[%emt 0:02:22]} 27. g3 {[%emt 0:04:35]} Ne5 {[%emt 0:02:57]} 28. Bg2 {[%emt 0:00:04]} Bc8 {[%emt 0:00:15]} 29. Re2 {[%emt 0:01:08]} h5 {[%emt 0:02:55]} 30. Rde1 {[%emt 0:00:40]} Kg7 {[%emt 0:01:41]} 31. Qa4 {[%emt 0:02:08]} Nd3 {[%emt 0:07:43]} 32. Rd1 {[%emt 0:00:09]} Nc5 {[%emt 0:00:06]} 33. Qa3 {[%emt 0:00:37]} Nce4 {[%emt 0:00:06]} 34. Rde1 {[%emt 0:03:42]} h4 {[%emt 0:00:44]} 35. Qb4 {[%emt 0:00:52]} Nc5 {[%emt 0:02:04]} 36. Rd1 {[%emt 0:01:21]} Nce4 {[%emt 0:03:34]} 37. Nf3 {[%emt 0:00:47]} hxg3 $1 {[%emt 0:01:15]} 38. hxg3 {[%emt 0:00:01]} Nd6 {[%emt 0:00:32]} 39. Rde1 {[%emt 0:01:17]} Rh8 {[%emt 0:03:17]} 40. Qb6 {[%emt 0:00:39]} Qxb6 {[%emt 0:00:00]} (40... Qc6 {looks sharper.} 41. Qd4 Nde4 42. Ne5 Qc5) 41. axb6 {[%emt 0:00:01]} Nb5 {[%emt 0:00:00]} 42. c4 {[%emt 0:02:14]} dxc4 {[%emt 0:00:00]} 43. Nxc4 {[%emt 0:00:02]} Bg4 {[%emt 0:01:28]} (43... Be6 44. Rxe6 fxe6 45. Ng5 $14) (43... Nd4 $11 44. Nxd4 Rxd4) 44. Re7 $16 {[%emt 0:00:34]} Rd7 {[%emt 0:00:01]} (44... Bxf3 $142 45. Bxf3 Nd6) 45. Ng5 $16 {[%emt 0:01:30]} Rhd8 $2 {[%emt 0:00:59]} (45... Rc8 $16) 46. Bxb7 $18 {[%emt 0:00:20]} (46. Nxf7 Rxe7 47. Rxe7 Rd1+ 48. Bf1 Rd7 49. Rxd7 Nxd7 $18) 46... Nd4 {[%emt 0:00:28]} 47. Rxd7 {[%emt 0:01:06]} (47. Bxa6 Rb8 48. b3 (48. Nxf7 $2 Nf3+ 49. Kg2 Nxe1+ 50. Rxe1 Rxf7 $19) 48... Nf3+ 49. Nxf3 Bxf3 $14) (47. Nxf7 $142 Rb8 48. Nfd6+ (48. Bxa6 $2 Nf3+ 49. Kg2 Nxe1+ 50. Rxe1 Rxf7 $19) 48... Kf8 49. Rxd7 Bxd7 50. Bg2 (50. Bxa6 Nf3+ 51. Kf1 Nxe1 $11)) 47... Rxd7 $2 {[%emt 0:00:05]} (47... Nxd7 {was necessary.} 48. Bd5 (48. Bxa6 Be2 $11) 48... Nc2) 48. Bc8 $18 {[%emt 0:00:37]} ({Resist} 48. Bxa6 Nh7 $18) 48... Rd5 {[%emt 0:00:17]} 49. b7 {[%emt 0:00:21]} (49. Bxa6 Rxg5 50. Re3 Rh5 $19) 49... Rb5 {[%emt 0:00:18]} 50. Bxg4 {[%emt 0:00:20]} Nxg4 {[%emt 0:00:05]} 51. Re4 {[%emt 0:00:04]} 1-0

[Event "7th Sharjah Masters 2024"]
[Site "Sharjah"]
[Date "2024.05.21"]
[Round "8.5"]
[White "Maghsoodloo, Parham"]
[Black "Muradli, Mahammad"]
[Result "1-0"]
[ECO "E53"]
[WhiteElo "2733"]
[BlackElo "2561"]
[Annotator "RC"]
[PlyCount "181"]
[EventDate "2024.05.13"]
[EventType "swiss"]
[EventCountry "UAE"]
[SourceTitle "playchess.com"]
[Source "ChessBase"]
[SourceQuality "1"]
[TimeControl "5400+30"]

1. d4 {[%emt 1:31:00]} Nf6 {[%emt 1:31:00]} 2. c4 {[%emt 0:00:30]} e6 {[%emt 0:00:30]} 3. Nc3 {[%emt 0:00:30]} Bb4 {[%emt 0:00:30]} 4. e3 {[%emt 0:00:30]} O-O {[%emt 0:00:30]} 5. Bd3 {[%emt 0:00:30]} d5 {[%emt 0:00:30]} 6. a3 {[%emt 0:00:30]} Bxc3+ {[%emt 0:00:30]} 7. bxc3 {[%emt 0:00:30]} dxc4 {[%emt 0:00:30]} 8. Bxc4 {[%emt 0:00:30]} c5 {[%emt 0:00:30]} 9. Nf3 {[%emt 0:00:30]} Qc7 {[%emt 0:00:30]} 10. Be2 {[%emt 0:00:30]} b6 {[%emt 0:00:30]} 11. Bb2 {[%emt 0:00:30]} Bb7 {[%emt 0:00:30]} 12. O-O {[%emt 0:00:30]} Rd8 {[%emt 0:00:30]} 13. Re1 {[%emt 0:00:30]} Nc6 {[%emt 0:00:30]} 14. Rc1 {[%emt 0:00:30]} Rac8 {[%emt 0:00:30]} 15. Bf1 {[%emt 0:00:30]} Ne7 {[%emt 0:00:30]} 16. Ne5 {[%emt 0:00:30]} Nd7 {[%emt 0:00:30]} 17. Nxd7 {[%emt 0:00:30]} Rxd7 {[%emt 0:00:30]} 18. Qg4 {[%emt 0:00:30]} Qc6 {[%emt 0:00:30]} 19. f3 {[%emt 0:00:30]} Kf8 {[%emt 0:00:30]} 20. c4 {[%emt 0:00:30]} f6 {[%emt 0:00:30]} 21. Bd3 {[%emt 0:00:30]} h6 {[%emt 0:00:30]} 22. d5 {[%emt 0:00:30]} exd5 {[%emt 0:00:30]} 23. cxd5 {[%emt 0:00:30]} Rxd5 {[%emt 0:00:30]} 24. Be4 {[%emt 0:00:30]} Qd7 {[%emt 0:00:30]} 25. Bxd5 {[%emt 0:00:30]} Qxg4 {[%emt 0:00:30]} 26. fxg4 {[%emt 0:00:30]} Bxd5 {[%emt 0:00:30]} 27. e4 {[%emt 0:00:30]} Be6 {[%emt 0:00:30]} 28. h3 {[%emt 0:00:30]} b5 {[%emt 0:00:30]} 29. Red1 {[%emt 0:00:30]} Kf7 {[%emt 0:00:30]} 30. Rd6 {[%emt 0:00:30]} c4 {[%emt 0:00:30]} 31. Bc3 {[%emt 0:00:30]} Nc6 {[%emt 0:00:30]} 32. Rb1 {[%emt 0:00:30]} a6 {[%emt 0:00:30]} 33. Kf2 {[%emt 0:00:30]} Ke7 {[%emt 0:00:30]} 34. Rd2 {[%emt 0:00:30]} Ne5 {[%emt 0:00:30]} 35. a4 {[%emt 0:00:30]} Nd3+ {[%emt 0:00:30]} 36. Ke3 {[%emt 0:00:30]} Bd7 {[%emt 0:00:30]} 37. axb5 {[%emt 0:00:30]} axb5 {[%emt 0:00:30]} 38. Ra2 Rc7 {[%emt 0:00:30]} 39. h4 {[%emt 0:01:00]} Kf7 {[%emt 0:00:30]} 40. g5 {[%emt 0:00:30]} b4 {[%emt 0:00:30]} 41. Bd4 {[%emt 0:00:30]} b3 {[%emt 0:00:30]} 42. Ra5 {[%emt 0:00:30]} hxg5 {[%emt 0:00:30]} 43. hxg5 {[%emt 0:00:30]} Ne5 {[%emt 0:00:30]} 44. gxf6 {[%emt 0:00:30]} gxf6 {[%emt 0:00:30]} 45. Rf1 {[%emt 0:00:30]} Ke7 {[%emt 0:00:30]} 46. Rc5 {[%emt 0:00:30]} Rxc5 {[%emt 0:00:30]} 47. Bxc5+ {[%emt 0:00:30]} Kf7 {[%emt 0:00:30]} 48. Bd4 {[%emt 0:00:30]} Ng4+ 49. Kf4 {[%emt 0:00:30]} Be6 {[%emt 0:01:00]} 50. Ra1 {[%emt 0:00:30]} Ne5 {[%emt 0:00:30]} 51. Ra7+ {[%emt 0:00:30]} Kg6 {[%emt 0:00:30]} 52. Ra6 {[%emt 0:00:30]} Nd3+ {[%emt 0:00:30]} 53. Ke3 {[%emt 0:00:30]} Kf7 {[%emt 0:00:30]} 54. Kd2 {[%emt 0:00:30]} Nf4 {[%emt 0:00:30]} 55. g3 {[%emt 0:00:30]} Nd3 {[%emt 0:00:30]} 56. Rb6 {[%emt 0:00:30]} Ne5 {[%emt 0:00:30]} 57. Ke3 {[%emt 0:00:30]} Nd3 {[%emt 0:00:30]} 58. Bc3 {[%emt 0:00:30]} Ne5 {[%emt 0:00:30]} 59. Kd4 {[%emt 0:00:30]} Nf3+ {[%emt 0:00:30]} 60. Ke3 {[%emt 0:00:30]} Ne5 {[%emt 0:00:30]} 61. Rb7+ {[%emt 0:00:30]} Kg6 {[%emt 0:00:30]} 62. Rb5 {[%emt 0:00:30]} Nd3 {[%emt 0:00:30]} 63. Kd4 {[%emt 0:00:30]} Kf7 {[%emt 0:00:30]} 64. Rb6 {[%emt 0:00:30]} Ne5 {[%emt 0:00:30]} 65. Rb7+ {[%emt 0:00:30]} Kg6 {[%emt 0:00:30]} 66. Kc5 {[%emt 0:00:30]} Nd3+ {[%emt 0:00:30]} 67. Kd6 {[%emt 0:00:30]} Bf7 {[%emt 0:00:30]} 68. Bd4 {[%emt 0:00:30]} Ne5 {[%emt 0:00:30]} 69. Bc3 {[%emt 0:00:30]} Nd3 {[%emt 0:00:30]} 70. Bd4 {[%emt 0:00:30]} Ne5 {[%emt 0:00:30]} 71. Kc5 {[%emt 0:00:30]} Nd3+ {[%emt 0:00:30]} 72. Kb5 {[%emt 0:00:30]} Be6 {[%emt 0:00:30]} 73. Kc6 {[%emt 0:00:30]} Ne5+ {[%emt 0:00:30]} 74. Kd6 {[%emt 0:00:30]} Bf7 {[%emt 0:00:30]} 75. Kc5 {[%emt 0:00:30]} Nd3+ {[%emt 0:00:30]} 76. Kb5 {[%emt 0:00:30]} Be6 {[%emt 0:00:30]} 77. Rb6 {[%emt 0:00:30]} Kf7 {[%emt 0:00:30]} 78. Kc6 {[%emt 0:00:30]} Ne5+ {[%emt 0:00:30]} 79. Kd6 {[%emt 0:00:30]} Nf3 {[%emt 0:00:30]} 80. Bb2 {[%emt 0:00:30]} Ng5 {[%emt 0:00:30]} 81. Rb7+ {[%emt 0:00:30]} Kg6 82. e5 {[%emt 0:00:30]} Bf7 {[%emt 0:01:00]} 83. Rb6 {[%emt 0:00:30]} fxe5 {[%emt 0:00:30]} 84. Kxe5+ {[%emt 0:00:30]} Kh5 {[%emt 0:00:30]} 85. Kf4 {[%emt 0:00:30]} Nh3+ {[%emt 0:00:30]} 86. Kf5 {[%emt 0:00:30]} Nf2 {[%emt 0:00:30]} 87. Bd4 {[%emt 0:00:30]} Ng4 {[%emt 0:00:30]} 88. Kf4 {[%emt 0:00:30]} Be8 {[%emt 0:00:30]} 89. Rb7 {[%emt 0:00:30]} Nh6 {[%emt 0:00:30]} 90. Rh7 {[%emt 0:00:30]} Bf7 {[%emt 0:00:30]} 91. g4+ {[%emt 0:00:30]} 1-0

[Event "7th Sharjah Masters 2024"]
[Site "Sharjah"]
[Date "2024.05.21"]
[Round "8.6"]
[White "Puranik, Abhimanyu"]
[Black "Yu, Yangyi"]
[Result "1/2-1/2"]
[ECO "C65"]
[WhiteElo "2631"]
[BlackElo "2729"]
[Annotator "TA"]
[PlyCount "108"]
[EventDate "2024.05.13"]
[EventType "swiss"]
[EventCountry "UAE"]
[SourceTitle "playchess.com"]
[Source "ChessBase"]
[SourceQuality "1"]
[TimeControl "5400+30"]

{[%evp 27,108,0,11,0,6,0,3,0,3,0,0,0,0,0,0,7,0,-23,-22,-27,-4,-19,-17,-75,-73,-89,-55,-87,-89,-79,-85,-71,-93,-85,-83,-99,-96,-198,-200,-244,-21,-15,-18,-17,-11,-11,-9,-9,-9,-14,-12,-12,0,0,0,-15,0,-4,0,0,0,0,0,0,0,-52,-51,-46,-18,-33,-11,-22,-11,-15,0,0,0,0,0,0,0,0,0]} 1. e4 {[%emt 1:31:00]} e5 {[%emt 1:31:00]} 2. Nf3 {[%emt 0:00:30]} Nc6 {[%emt 0:00:30]} 3. Bb5 {[%emt 0:00:30]} Nf6 {[%emt 0:00:30]} 4. d3 {[%emt 0:00:30]} Bc5 {[%emt 0:00:30]} 5. Bxc6 {[%emt 0:00:30]} dxc6 {[%emt 0:00:30]} 6. Nbd2 {[%emt 0:00:30] C65: Ruy Lopez: Berlin Defence (3...Nf6), unusual lines and 4 0-0 Bc5.} Be6 {[%emt 0:00:30]} 7. O-O {[%emt 0:00:30]} Qd6 {[%emt 0:00:30]} 8. b3 {[%emt 0:00:30]} a5 $1 {[%emt 0:00:30][%mdl 4] now scores much better than the old 8...Nd7.} 9. Nc4 $146 {[%emt 0:00:30]} ({Predecessor:} 9. Bb2 Nd7 10. Ng5 a4 11. Ndf3 f6 12. Nxe6 Qxe6 13. d4 exd4 14. Nxd4 Bxd4 15. Qxd4 {0-1 Maghsoodloo,P (2742)-Eljanov,P (2691) Chennai 2023 (1)}) 9... Bxc4 {[%emt 0:00:30]} 10. bxc4 {[%emt 0:00:30]} Nd7 {[%emt 0:00:30]} 11. c3 {[%emt 0:00:30]} Qe6 {[%emt 0:00:30]} 12. d4 {[%emt 0:00:30]} Be7 {[%emt 0:00:30]} 13. Qe2 {[%emt 0:00:30]} O-O {[%emt 0:00:30]} 14. Re1 {[%emt 0:00:30]} Rfe8 {[%emt 0:00:30]} 15. c5 {[%emt 0:00:30]} h6 {[%emt 0:00:30]} 16. Rb1 {[%emt 0:00:30]} Rab8 {[%emt 0:00:30]} 17. h3 {[%emt 0:00:30]} Bf8 {[%emt 0:00:30]} 18. Qc2 {[%emt 0:00:30]} b6 {[%emt 0:00:30]} 19. cxb6 {[%emt 0:00:30]} cxb6 {[%emt 0:00:30]} 20. c4 {[%emt 0:00:30]} Rbc8 {[%emt 0:00:30]} 21. Bb2 {[%emt 0:00:30]} b5 {[%emt 0:00:30]} 22. dxe5 {[%emt 0:00:30]} Nb6 {[%emt 0:00:30]} 23. cxb5 {[%emt 0:00:30]} cxb5 {[%emt 0:00:30]} 24. Qe2 {[%emt 0:00:30]} b4 {[%emt 0:00:30]} 25. Nd4 {[%emt 0:00:30]} (25. Ba1 $11 {remains equal.}) 25... Qxe5 $17 {[%emt 0:00:30]} 26. Nb3 {[%emt 0:00:30]} Qg5 {[%emt 0:00:30]} 27. Qa6 {[%emt 0:00:30]} Nc4 {[%emt 0:00:30]} 28. Rbc1 {[%emt 0:00:30]} Qg6 {[%emt 0:00:30]} 29. Qxg6 fxg6 {[%emt 0:00:30]} 30. Ba1 {[%emt 0:01:00]} a4 {[%emt 0:00:30]} 31. Nd4 {[%emt 0:00:30] [#]} Bd6 $1 {[%emt 0:00:30]} 32. Nb5 {[%emt 0:00:30]} (32. Nf3 $17) 32... Bf4 $19 {[%emt 0:00:30]} 33. Rb1 {[%emt 0:00:30] [#]} b3 $2 {[%emt 0:00:30]} ({Resist} 33... Bd2 34. Re2 $17) ({Black should try} 33... Rc5 $1 $19 {[%mdl 512]} 34. Nd4 (34. Rxb4 $2 {is the wrong capture.} Bd2 $19) 34... Na3) 34. axb3 $11 {[%emt 0:00:30]} Nd2 {[%emt 0:00:30]} 35. Rbd1 {[%emt 0:00:30]} Nxb3 {[%emt 0:00:30]} 36. Nd6 {[%emt 0:00:30]} Bxd6 {[%emt 0:00:30]} 37. Rxd6 {[%emt 0:00:30]} Ra8 {[%emt 0:00:30]} 38. Rxg6 {[%emt 0:00:30]} Nxa1 {[%emt 0:00:30]} 39. Rxa1 {[%emt 0:00:30]} Rxe4 {[%emt 0:00:30]} 40. Ra3 {[%emt 0:00:30]} Rb4 {[%emt 0:00:30]} 41. Kh2 {[%emt 0:00:30]} Ra7 {[%emt 0:00:30]} 42. Kg3 {[%emt 0:00:30]} Kf7 {[%emt 0:00:30]} 43. Rc6 {[%emt 0:00:30]} Ke7 {[%emt 0:00:30]} 44. f3 {[%emt 0:00:30]} Kd7 {[%emt 0:00:30]} 45. Rg6 {[%emt 0:00:30]} Kc8 {[%emt 0:00:30]} 46. Rc6+ {[%emt 0:00:30]} (46. Re3 $1 $11) 46... Kb7 $15 {[%emt 0:00:30]} 47. Rg6 {[%emt 0:00:30]} Ka8 {[%emt 0:00:30]} 48. Re6 {[%emt 0:00:30]} Kb8 {[%emt 0:00:30]} 49. h4 {[%emt 0:00:30]} Kc8 {[%emt 0:00:30]} 50. Rc6+ {[%emt 0:00:30]} Kd7 {[%emt 0:00:30]} 51. Rg6 {[%emt 0:00:30]} Ke8 {[%emt 0:00:30]} 52. Re6+ {[%emt 0:00:30]} Kf7 {[%emt 0:00:30]} 53. Rc6 {[%emt 0:00:30]} Kg8 {[%emt 0:00:30]} 54. Kh3 {[%emt 0:00:30]} Kh7 {[%emt 0:00:30]} 1/2-1/2

[Event "7th Sharjah Masters 2024"]
[Site "Sharjah"]
[Date "2024.05.21"]
[Round "8.7"]
[White "Vokhidov, Shamsiddin"]
[Black "Niemann, Hans Moke"]
[Result "*"]
[ECO "B30"]
[WhiteElo "2592"]
[BlackElo "2689"]
[Annotator "TA"]
[PlyCount "74"]
[EventDate "2024.05.13"]
[EventType "swiss"]
[EventCountry "UAE"]
[SourceTitle "playchess.com"]
[Source "ChessBase"]
[SourceQuality "1"]
[TimeControl "5400+30"]

{[%evp 9,74,28,40,19,19,15,32,-4,0,0,0,-18,0,1,0,0,0,0,0,0,0,0,0,0,0,0,0,0,0,-16,-12,-83,-79,-75,-12,-12,-9,0,0,0,14,15,61,67,83,64,114,141,117,109,116,62,62,52,61,0,0,0,114,106,244,81,105,97,350,216,1032]} 1. e4 {[%emt 1:31:00][%cal Be2e4,Be4e5][%mdl 32]} c5 {[%emt 1:31:00]} 2. Nf3 {[%emt 0:00:30]} Nc6 {[%emt 0:00:30]} 3. Bb5 {[%emt 0:00:30]} Nf6 {[%emt 0:00:30][%cal Bg8f6,Bf6d5,Bd5b4][%mdl 32]} 4. Bxc6 {[%emt 0:00:30]} dxc6 {[%emt 0:00:30]} 5. d3 {[%emt 0:00:30]} Qc7 {[%emt 0:00:30]} 6. e5 {[%emt 0:00:30]} Nd5 {[%emt 0:00:30]} 7. c4 {[%emt 0:00:30]} Nb4 {[%emt 0:00:30] Hoping for ...Bf5.} 8. a3 {[%emt 0:00:30] White is slightly better.} Na6 {[%emt 0:00:30]} 9. Qe2 {[%emt 0:00:30]} Bg4 {[%emt 0:00:30]} 10. Nbd2 {[%emt 0:00:30]} Rd8 {[%emt 0:00:30]} 11. h3 {[%emt 0:00:30]} Bf5 {[%emt 0:00:30]} 12. Ne4 {[%emt 0:00:30]} Qd7 {[%emt 0:00:30]} 13. g4 {[%emt 0:00:30]} Bg6 {[%emt 0:00:30]} 14. Nh4 {[%emt 0:00:30]} Bxe4 {[%emt 0:00:30]} 15. dxe4 {[%emt 0:00:30]} Nc7 {[%emt 0:00:30]} 16. Be3 {[%emt 0:00:30]} Ne6 {[%emt 0:00:30]} 17. f4 {[%emt 0:00:30]} g5 {[%emt 0:00:30]} 18. fxg5 {[%emt 0:00:30]} Bg7 {[%emt 0:00:30]} 19. O-O {[%emt 0:00:30]} Qd3 {[%emt 0:00:30]} 20. Qf2 {[%emt 0:00:30]} (20. Qxd3 $1 $11 Rxd3 21. Kf2) 20... Rf8 $17 {[%emt 0:00:30]} 21. Nf3 {[%emt 0:00:30]} Qxe4 {[%emt 0:00:30]} (21... Qxc4 $17 22. Rae1 b6 (22... Qxe4 23. Bxc5 Qa4 24. Qe3 $11)) 22. Bxc5 $11 {[%emt 0:00:30]} Rd3 {[%emt 0:00:30] aiming for ...Nxc5.} 23. Bxa7 {[%emt 0:00:30]} Nf4 {[%emt 0:00:30]} 24. Kh2 {[%emt 0:00:30]} Qxc4 {[%emt 0:00:30]} (24... Bxe5 25. Rae1 Qxf3 (25... Ne2+ $2 26. Kg2 $18) 26. Qxf3 $16) 25. Rad1 {[%emt 0:00:30]} Qd5 {[%emt 0:00:30]} (25... Bxe5 $11 26. Rxd3 (26. Nxe5 $2 {loses.} Rxh3+ 27. Kg1 Qe4 $19) 26... Nxd3+ 27. Nxe5 Nxe5) 26. Bd4 $1 $14 {[%emt 0:00:30] And now Rxd3 would win.} Qe4 {[%emt 0:00:30]} 27. Qc2 {[%emt 0:00:30]} (27. Qe1 {simplifies} Qxe1 28. Rdxe1 Nd5 29. Rd1) 27... Rxd4 {[%emt 0:00:30]} 28. Nxd4 $16 {[%emt 0:00:30]} Qxc2+ {[%emt 0:00:30]} 29. Nxc2 {[%emt 0:00:30]} Bxe5 {[%emt 0:00:30][%cal Of8h8]} 30. b4 {[%emt 0:00:30]} (30. h4 $16) 30... Rg8 $14 {[%emt 0:00:30]} 31. Kg3 {[%emt 0:00:30]} Ne6+ {[%emt 0:00:30]} 32. Kg2 {[%emt 0:00:30]} ({Better is} 32. Kf2 $14) 32... Nf4+ $1 $11 {[%emt 0:00:30]} 33. Kg3 {[%emt 0:00:30]} Nd5+ {[%emt 0:00:30]} (33... Ne6+ $11 {keeps the balance.} 34. Kf3 Nxg5+ 35. Kg2 Ne6) 34. Kf3 $16 {[%emt 0:00:30]} Rg7 {[%emt 0:00:30] [#]} (34... Rxg5 $16 {might work better.} 35. Ne3 Nxe3 36. Kxe3 e6) 35. g6 $2 Rxg6 {[%cal Oh7h5] [#]} 36. Ne3 $1 {[%emt 0:01:00]} Rg5 $2 {[%mdl 8192]} (36... Nc3 $16) 37. h4 {[%emt 0:00:30]} e6 $2 {[%emt 0:01:30] Weighted Error Value: White=0.20 (precise) /Black=0.31.  Loses game:     	---       	Black=1      Missed win:     	White=1     	---        Mistake:       	White=3     	Black=6      Inaccurate:     	White=1     	---        OK:         	White=12    	Black=15     Best:        	White=3     	Black=2      Strong:       	White=2     	Black=1} (37... Nxe3 38. hxg5 Nxd1 39. Rxd1 Bc3) *